lending/lending_fUSD_20240507
["ID","MTS","AMOUNT","RATE_DAILY","PERIOD"]
[326589981,1715119872028,-622.05,0.00021369,2]
[326589982,1715119872038,-569.47,0.00021369,2]
[326589983,1715119872049,-500.0,0.00021369,2]
[326589984,1715119872059,-378.18,0.00021369,2]
[326589985,1715119872069,-500.0,0.00021369,2]
[326589986,1715119872217,-890.12,0.00021369,2]
[326589987,1715119872228,-500.0,0.00021369,2]
[326589988,1715119872239,-850.11,0.00021369,2]
[326589989,1715119872248,-932.93,0.00021369,2]
[326589990,1715119872257,-500.0,0.00021369,2]
[326589991,1715119872267,-828.94,0.00021369,2]
[326589992,1715119872276,-500.0,0.00021369,2]
[326589993,1715119872286,-505.16,0.00021369,2]
[326589994,1715119872296,-500.0,0.00021369,2]
[326589995,1715119872305,-500.0,0.00021369,2]
[326589996,1715119872314,-500.0,0.00021369,2]
[326589997,1715119872324,-831.91,0.00021369,2]
[326589998,1715119872334,-2890.11,0.00021369,2]
[326589999,1715119872344,-500.0,0.00021369,2]
[326590000,1715119872354,-500.0,0.00021369,2]
[326590001,1715119872363,-789.32,0.00021369,2]
[326590002,1715119872373,-500.0,0.00021369,2]
[326590003,1715119872382,-500.0,0.00021369,2]
[326590004,1715119872391,-1838.64,0.00021369,2]
[326590005,1715119872401,-335.60080102,0.00021369,2]
[326590006,1715119872411,-500.0,0.00021369,2]
[326590007,1715119872421,-500.0,0.00021369,2]
[326590008,1715119872431,-500.0,0.00021369,2]
[326590009,1715119872441,-500.0,0.00021369,2]
[326590010,1715119872451,-500.0,0.00021369,2]
[326590011,1715119872460,-346.64,0.00021369,2]
[326590012,1715119872470,-500.0,0.00021369,2]
[326590013,1715119872479,-1016.56,0.00021369,2]
[326590014,1715119872489,-500.0,0.00021369,2]
[326590015,1715119872499,-500.0,0.00021369,2]
[326590016,1715119872508,-275.98423075,0.00021369,2]
[326590017,1715119872517,-875.3,0.00021369,2]
[326590018,1715119872526,-648.96,0.00021369,2]
[326590019,1715119872536,-1782.61,0.00021369,2]
[326590020,1715119872546,-500.0,0.00021369,2]
[326590021,1715119872556,-1028.09,0.00021369,2]
[326590022,1715119872565,-1195.08,0.00021369,2]
[326590023,1715119872574,-256.49202532,0.00021369,2]
[326590024,1715119872584,-1256.37,0.00021369,2]
[326590025,1715119872593,-3203.8,0.00021369,2]
[326590026,1715119872602,-5342.88,0.00021369,2]
[326590027,1715119872612,-815.42,0.00021369,2]
[326590028,1715119872622,-500.0,0.00021369,2]
[326590029,1715119872631,-500.0,0.00021369,2]
[326590030,1715119872640,-226.61136221,0.00021369,2]
[326590031,1715119872649,-500.0,0.00021369,2]
[326590032,1715119872664,-500.0,0.00021369,2]
[326590033,1715119872686,-1949.26,0.00021369,2]
[326590034,1715119872710,-500.0,0.00021369,2]
[326590035,1715119872734,-45335.66921387,0.00021369,2]
[326590036,1715119872772,-600.0,0.00021369,2]
[326590037,1715119872801,-341.12963246,0.00021369,2]
[326590038,1715119872827,-610.55040389,0.00021369,2]
[326590039,1715119872853,-977.41381075,0.00021369,2]
[326590040,1715119872877,-531.46081626,0.00021369,2]
[326590041,1715119872889,-1801.45940999,0.00021369,2]
[326590042,1715119872900,-770.6560004,0.00021369,2]
[326590043,1715119873211,-1622.1000002,0.000129,2]
[326590044,1715119873222,-671.41051326,0.000129,2]
[326590045,1715119873232,-237.2086949,0.00019178,2]
[326590046,1715119873244,-262.7913051,0.00019178,2]
[326590047,1715119873254,-210.14869452,0.00019178,2]
[326590048,1715119873266,-289.85130548,0.00019178,2]
[326590049,1715119873275,-500.0,0.00019178,2]
[326590050,1715119873284,-500.0,0.00019178,2]
[326590051,1715119873294,-500.0,0.00019452,2]
[326590052,1715119873303,-52.64869472,0.00019452,2]
[326590053,1715119873314,-447.35130528,0.00019452,2]
[326590054,1715119873323,-176.10869472,0.00019452,2]
[326590055,1715119873334,-293.09130528,0.00019452,2]
[326590056,1715119873343,-98.20348788,0.00019452,2]
[326590057,1715119873355,-401.79651212,0.00019452,2]
[326590058,1715119873364,-427.82,0.00019726,2]
[326590059,1715119873373,-262.16090964,0.00019726,2]
[326590060,1715119873385,-237.83909036,0.00019726,2]
[326590061,1715119873394,-500.0,0.00019726,2]
[326590062,1715119873403,-237.66090966,0.0002,2]
[326590063,1715119873415,-262.33909034,0.0002,2]
[326590064,1715119873424,-500.0,0.0002,2]
[326590065,1715119873435,-500.0,0.00020273,2]
[326590066,1715119873446,-500.0,0.00020273,2]
[326590067,1715119873455,-500.0,0.00020547,2]
[326590068,1715119873464,-500.0,0.00020547,2]
[326590069,1715119873473,-500.0,0.00020821,2]
[326590070,1715119873482,-500.0,0.00021095,2]
[326590071,1715119873491,-500.0,0.00021369,2]
[326590072,1715119873501,-14732.94736264,0.00021369,2]
[326590073,1715119873512,-1424.698348,0.00021369,2]
[326590074,1715119873523,-16196.10625724,0.00021369,2]
[326590075,1715119873532,-152.0,0.00021443,3]
[326590076,1715119873541,-150.0,0.000215,3]
[326590077,1715119873550,-1581.59,0.00021589,15]
[326590078,1715119873559,-500.0,0.00021643,2]
[326590079,1715119873569,-500.0,0.00021643,2]
[326590080,1715119873578,-500.0,0.00021643,2]
[326590081,1715119873587,-500.0,0.00021643,2]
[326590082,1715119873597,-500.0,0.00021643,2]
[326590083,1715119873607,-500.0,0.00021643,2]
[326590084,1715119873616,-500.0,0.00021643,2]
[326590085,1715119873626,-500.0,0.00021643,2]
[326590086,1715119873635,-500.0,0.00021643,2]
[326590087,1715119873644,-500.0,0.00021643,2]
[326590088,1715119873653,-500.0,0.00021643,2]
[326590089,1715119873663,-500.0,0.00021643,2]
[326590090,1715119873672,-500.0,0.00021643,2]
[326590091,1715119873683,-500.0,0.00021643,2]
[326590092,1715119873692,-91.69983713,0.00021643,2]
[326590093,1715119873704,-408.30016287,0.00021643,2]
[326590094,1715119873713,-500.0,0.00021643,2]
[326590095,1715119873723,-448.00653808,0.00021643,2]
[326590096,1715119873734,-51.99346192,0.00021643,2]
[326590097,1715119873744,-395.04691074,0.00021643,2]
[326590098,1715119873756,-104.95308926,0.00021643,2]
[326590099,1715119873765,-150.0,0.00021643,2]
[326590100,1715119873774,-942.72,0.00021643,2]
[326590101,1715119873783,-500.0,0.00021643,2]
[326590102,1715119873793,-500.0,0.00021643,2]
[326590103,1715119873802,-660.49285304,0.00021643,2]
[326590104,1715119873813,-757.78714696,0.00021643,2]
[326590105,1715119873823,-500.0,0.00021643,2]
[326590106,1715119873832,-500.0,0.00021643,2]
[326590107,1715119873841,-427.72127707,0.00021643,2]
[326590108,1715119873852,-72.27872293,0.00021643,2]
[326590109,1715119873862,-515.24,0.00021643,2]
[326590110,1715119873871,-175.44705553,0.00021643,2]
[326590111,1715119873883,-324.55294447,0.00021643,2]
[326590112,1715119873892,-587.22,0.00021643,2]
[326590113,1715119873902,-1730.51,0.00021643,2]
[326590114,1715119873912,-500.0,0.00021643,2]
[326590115,1715119873921,-194.18776933,0.00021643,2]
[326590116,1715119873932,-500.0,0.00021643,2]
[326590117,1715119873942,-500.0,0.00021643,2]
[326590118,1715119873951,-500.0,0.00021643,2]
[326590119,1715119873960,-500.0,0.00021643,2]
[326590120,1715119873970,-500.0,0.00021643,2]
[326590121,1715119873979,-500.0,0.00021643,2]
[326590122,1715119873989,-861.16,0.00021643,2]
[326590123,1715119873999,-516.54,0.00021643,2]
[326590124,1715119874008,-697.67,0.00021643,2]
[326590125,1715119874018,-500.0,0.00021643,2]
[326590126,1715119874030,-1094.36,0.00021643,2]
[326590127,1715119874040,-500.0,0.00021643,2]
[326590128,1715119874049,-971.99,0.00021643,2]
[326590129,1715119874059,-563.97538663,0.00021643,2]
[326590130,1715119874068,-3689.41,0.00021643,2]
[326590131,1715119874078,-500.0,0.00021643,2]
[326590132,1715119874087,-569.47,0.00021643,2]
[326590133,1715119874097,-622.05,0.00021643,2]
[326590134,1715119874107,-500.0,0.00021643,2]
[326590135,1715119874117,-612.02,0.00021643,2]
[326590136,1715119874126,-890.12,0.00021643,2]
[326590137,1715119874135,-500.0,0.00021643,2]
[326590138,1715119874145,-850.11,0.00021643,2]
[326590139,1715119874155,-932.93,0.00021643,2]
[326590140,1715119874164,-500.0,0.00021643,2]
[326590141,1715119874173,-828.94,0.00021643,2]
[326590142,1715119874183,-500.0,0.00021643,2]
[326590143,1715119874193,-505.16,0.00021643,2]
[326590144,1715119874202,-500.0,0.00021643,2]
[326590145,1715119874212,-500.0,0.00021643,2]
[326590146,1715119874221,-500.0,0.00021643,2]
[326590147,1715119874231,-831.91,0.00021643,2]
[326590148,1715119874241,-500.0,0.00021643,2]
[326590149,1715119874250,-2890.11,0.00021643,2]
[326590150,1715119874259,-500.0,0.00021643,2]
[326590151,1715119874269,-789.32,0.00021643,2]
[326590152,1715119874279,-500.0,0.00021643,2]
[326590153,1715119874288,-500.0,0.00021643,2]
[326590154,1715119874298,-1838.64,0.00021643,2]
[326590155,1715119874308,-500.0,0.00021643,2]
[326590156,1715119874318,-500.0,0.00021643,2]
[326590157,1715119874327,-500.0,0.00021643,2]
[326590158,1715119874337,-500.0,0.00021643,2]
[326590159,1715119874347,-500.0,0.00021643,2]
[326590160,1715119874356,-500.0,0.00021643,2]
[326590161,1715119874366,-1016.56,0.00021643,2]
[326590162,1715119874376,-500.0,0.00021643,2]
[326590163,1715119874386,-500.0,0.00021643,2]
[326590164,1715119874395,-875.3,0.00021643,2]
[326590165,1715119874405,-648.96,0.00021643,2]
[326590166,1715119874416,-1782.61,0.00021643,2]
[326590167,1715119874426,-154.61,0.00021643,2]
[326590168,1715119874437,-1028.09,0.00021643,2]
[326590169,1715119874446,-1195.08,0.00021643,2]
[326590170,1715119874456,-1256.37,0.00021643,2]
[326590171,1715119874465,-3203.8,0.00021643,2]
[326590172,1715119874475,-5342.88,0.00021643,2]
[326590173,1715119874485,-815.42,0.00021643,2]
[326590174,1715119874494,-500.0,0.00021643,2]
[326590175,1715119874504,-500.0,0.00021643,2]
[326590176,1715119874513,-500.0,0.00021643,2]
[326590177,1715119874524,-500.0,0.00021643,2]
[326590178,1715119874534,-1949.26,0.00021643,2]
[326590179,1715119874544,-500.0,0.00021643,2]
[326590180,1715119874554,-500.0,0.00021643,2]
[326590181,1715119874564,-155.82389901,0.0002165,2]
[326590182,1715119874574,-782.13638794,0.00021653,2]
[326590183,1715119874583,-378.89600529,0.00021653,2]
[326590184,1715119874593,-162.26289943,0.00021654,2]
[326590185,1715119874602,-1246.19492949,0.00021654,2]
[326590186,1715119874612,-4417.68693745,0.00021654,2]
[326590187,1715119874622,-155.95726113,0.00021722,2]
[326590188,1715119874631,-1000.0,0.000218,2]
[326590189,1715119874641,-500.0,0.00021917,5]
[326590190,1715119874650,-500.0,0.00021917,5]
[326590191,1715119874660,-151.03638655,0.00021917,5]
[326590192,1715119874669,-500.0,0.00021917,2]
[326590193,1715119874681,-266.02,0.00021917,2]
[326590194,1715119874690,-500.0,0.00021917,2]
[326590195,1715119874701,-500.0,0.00021917,2]
[326590196,1715119874711,-500.0,0.00021917,2]
[326590197,1715119874721,-500.0,0.00021917,2]
[326590198,1715119874730,-202.78,0.00021917,2]
[326590199,1715119874740,-500.0,0.00021917,2]
[326590200,1715119874749,-500.0,0.00021917,2]
[326590201,1715119874759,-500.0,0.00021917,2]
[326590202,1715119874768,-234.8434597,0.00021917,2]
[326590203,1715119874778,-271.24,0.00021917,2]
[326590204,1715119874788,-500.0,0.00021917,2]
[326590205,1715119874797,-647.78809424,0.00021917,2]
[326590206,1715119874807,-155.54,0.00021917,2]
[326590207,1715119874816,-479.45906104,0.00021917,2]
[326590208,1715119874826,-500.0,0.00021917,2]
[326590209,1715119874835,-300.0,0.00021917,2]
[326590210,1715119874845,-500.0,0.00021917,2]
[326590211,1715119874855,-150.0,0.00021917,2]
[326590212,1715119874864,-942.72,0.00021917,2]
[326590213,1715119874874,-631.16,0.00021917,2]
[326590214,1715119874883,-500.0,0.00021917,2]
[326590215,1715119874892,-634.66,0.00021917,2]
[326590216,1715119875020,-500.0,0.00021917,2]
[326590217,1715119875035,-500.0,0.00021917,2]
[326590218,1715119875044,-515.24,0.00021917,2]
[326590219,1715119875053,-500.0,0.00021917,2]
[326590220,1715119875063,-1730.51,0.00021917,2]
[326590221,1715119875074,-500.0,0.00021917,2]
[326590222,1715119875084,-500.0,0.00021917,2]
[326590223,1715119875094,-500.0,0.00021917,2]
[326590224,1715119875104,-500.0,0.00021917,2]
[326590225,1715119875114,-500.0,0.00021917,2]
[326590226,1715119875123,-500.0,0.00021917,2]
[326590227,1715119875133,-436.11869667,0.00021917,2]
[326590228,1715119875143,-861.16,0.00021917,2]
[326590229,1715119875153,-516.54,0.00021917,2]
[326590230,1715119875163,-697.67,0.00021917,2]
[326590231,1715119875172,-500.0,0.00021917,2]
[326590232,1715119875183,-1094.36,0.00021917,2]
[326590233,1715119875193,-500.0,0.00021917,2]
[326590234,1715119875203,-971.99,0.00021917,2]
[326590235,1715119875213,-3689.41,0.00021917,2]
[326590236,1715119875223,-500.0,0.00021917,2]
[326590237,1715119875233,-569.47,0.00021917,2]
[326590238,1715119875243,-622.05,0.00021917,2]
[326590239,1715119875253,-500.0,0.00021917,2]
[326590240,1715119875262,-890.12,0.00021917,2]
[326590241,1715119875272,-500.0,0.00021917,2]
[326590242,1715119875282,-850.11,0.00021917,2]
[326590243,1715119875292,-932.93,0.00021917,2]
[326590244,1715119875302,-500.0,0.00021917,2]
[326590245,1715119875312,-828.94,0.00021917,2]
[326590246,1715119875321,-500.0,0.00021917,2]
[326590247,1715119875331,-505.16,0.00021917,2]
[326590248,1715119875341,-500.0,0.00021917,2]
[326590249,1715119875351,-500.0,0.00021917,2]
[326590250,1715119875360,-500.0,0.00021917,2]
[326590251,1715119875371,-831.91,0.00021917,2]
[326590252,1715119875381,-500.0,0.00021917,2]
[326590253,1715119875391,-2890.11,0.00021917,2]
[326590254,1715119875400,-500.0,0.00021917,2]
[326590255,1715119875410,-500.0,0.00021917,2]
[326590256,1715119875420,-789.32,0.00021917,2]
[326590257,1715119875431,-500.0,0.00021917,2]
[326590258,1715119875441,-1838.64,0.00021917,2]
[326590259,1715119875451,-500.0,0.00021917,2]
[326590260,1715119875460,-500.0,0.00021917,2]
[326590261,1715119875469,-500.0,0.00021917,2]
[326590262,1715119875479,-500.0,0.00021917,2]
[326590263,1715119875489,-500.0,0.00021917,2]
[326590264,1715119875499,-500.0,0.00021917,2]
[326590265,1715119875508,-1016.56,0.00021917,2]
[326590266,1715119875518,-500.0,0.00021917,2]
[326590267,1715119875528,-306.13538787,0.00021917,2]
[326590268,1715119875538,-875.3,0.00021917,2]
[326590269,1715119875548,-648.96,0.00021917,2]
[326590270,1715119875558,-1782.61,0.00021917,2]
[326590271,1715119875569,-1028.09,0.00021917,2]
[326590272,1715119875579,-1195.08,0.00021917,2]
[326590273,1715119875588,-1256.37,0.00021917,2]
[326590274,1715119875598,-5342.88,0.00021917,2]
[326590275,1715119875608,-3203.8,0.00021917,2]
[326590276,1715119875618,-815.42,0.00021917,2]
[326590277,1715119875628,-500.0,0.00021917,2]
[326590278,1715119875639,-500.0,0.00021917,2]
[326590279,1715119875648,-500.0,0.00021917,2]
[326590280,1715119875658,-500.0,0.00021917,2]
[326590281,1715119875668,-1949.26,0.00021917,2]
[326590282,1715119875678,-459.84055285,0.00021917,2]
[326590283,1715119875689,-500.0,0.00021917,2]
[326590284,1715119875699,-250.0,0.00021918,2]
[326590285,1715119875709,-2000.0,0.00021918,2]
[326590286,1715119875719,-250.0,0.00021918,2]
[326590287,1715119875728,-879.76,0.00021918,3]
[326590288,1715119875737,-546.24344743,0.00022,2]
[326590289,1715119875746,-731.37669505,0.00022,7]
[326590290,1715119875756,-850.0,0.00022,3]
[326590291,1715119875766,-2585.154537,0.00022,2]
[326590292,1715119875776,-1000.0,0.00022,2]
[326590293,1715119875786,-900.0,0.00022,23]
[326590294,1715119875795,-150.0,0.00022,3]
[326590295,1715119875804,-157.050807,0.00022148,2]
[326590296,1715119875815,-167.58743393,0.00022189,2]
[326590297,1715119875825,-1195.59022382,0.00022191,2]
[326590298,1715119875834,-196.3131271,0.00022191,2]
[326590299,1715119875843,-406.96,0.00022191,2]
[326590300,1715119875853,-500.0,0.00022191,2]
[326590301,1715119875863,-500.0,0.00022191,2]
[326590302,1715119875873,-500.0,0.00022191,2]
[326590303,1715119875882,-557.76,0.00022191,2]
[326590304,1715119875892,-500.0,0.00022191,2]
[326590305,1715119875902,-500.0,0.00022191,2]
[326590306,1715119875911,-500.0,0.00022191,2]
[326590307,1715119875920,-500.0,0.00022191,2]
[326590308,1715119875931,-500.0,0.00022191,2]
[326590309,1715119875942,-150.0,0.00022191,2]
[326590310,1715119875952,-942.72,0.00022191,2]
[326590311,1715119875961,-500.0,0.00022191,2]
[326590312,1715119875971,-284.24240195,0.00022191,2]
[326590313,1715119875980,-254.2326871,0.00022191,2]
[326590314,1715119875990,-515.24,0.00022191,2]
[326590315,1715119875999,-500.0,0.00022191,2]
[326590316,1715119876008,-1730.51,0.00022191,2]
[326590317,1715119876018,-500.0,0.00022191,2]
[326590318,1715119876033,-500.0,0.00022191,2]
[326590319,1715119876043,-500.0,0.00022191,2]
[326590320,1715119876052,-500.0,0.00022191,2]
[326590321,1715119876062,-500.0,0.00022191,2]
[326590322,1715119876071,-500.0,0.00022191,2]
[326590323,1715119876082,-861.16,0.00022191,2]
[326590324,1715119876092,-697.67,0.00022191,2]
[326590325,1715119876102,-516.54,0.00022191,2]
[326590326,1715119876114,-500.0,0.00022191,2]
[326590327,1715119876124,-1094.36,0.00022191,2]
[326590328,1715119876134,-500.0,0.00022191,2]
[326590329,1715119876144,-971.99,0.00022191,2]
[326590330,1715119876153,-3689.41,0.00022191,2]
[326590331,1715119876163,-634.16,0.00022191,2]
[326590332,1715119876173,-569.47,0.00022191,2]
[326590333,1715119876184,-622.05,0.00022191,2]
[326590334,1715119876194,-169.64,0.00022191,2]
[326590335,1715119876203,-890.12,0.00022191,2]
[326590336,1715119876212,-608.76436963,0.00022191,2]
[326590337,1715119876222,-850.11,0.00022191,2]
[326590338,1715119876231,-500.0,0.00022191,2]
[326590339,1715119876241,-828.94,0.00022191,2]
[326590340,1715119876250,-932.93,0.00022191,2]
[326590341,1715119876260,-500.0,0.00022191,2]
[326590342,1715119876270,-505.16,0.00022191,2]
[326590343,1715119876280,-500.0,0.00022191,2]
[326590344,1715119876289,-500.0,0.00022191,2]
[326590345,1715119876299,-500.0,0.00022191,2]
[326590346,1715119876308,-831.91,0.00022191,2]
[326590347,1715119876318,-500.0,0.00022191,2]
[326590348,1715119876328,-2890.11,0.00022191,2]
[326590349,1715119876338,-500.0,0.00022191,2]
[326590350,1715119876348,-789.32,0.00022191,2]
[326590351,1715119876358,-500.0,0.00022191,2]
[326590352,1715119876367,-500.0,0.00022191,2]
[326590353,1715119876378,-1838.64,0.00022191,2]
[326590354,1715119876388,-251.20110975,0.00022191,2]
[326590355,1715119876398,-500.0,0.00022191,2]
[326590356,1715119876408,-500.0,0.00022191,2]
[326590357,1715119876418,-500.0,0.00022191,2]
[326590358,1715119876427,-500.0,0.00022191,2]
[326590359,1715119876439,-500.0,0.00022191,2]
[326590360,1715119876449,-1016.56,0.00022191,2]
[326590361,1715119876458,-500.0,0.00022191,2]
[326590362,1715119876467,-875.3,0.00022191,2]
[326590363,1715119876476,-648.96,0.00022191,2]
[326590364,1715119876486,-1782.61,0.00022191,2]
[326590365,1715119876496,-1028.09,0.00022191,2]
[326590366,1715119876506,-1195.08,0.00022191,2]
[326590367,1715119876515,-1256.37,0.00022191,2]
[326590368,1715119876525,-5342.88,0.00022191,2]
[326590369,1715119876535,-3203.8,0.00022191,2]
[326590370,1715119876544,-815.42,0.00022191,2]
[326590371,1715119876555,-500.0,0.00022191,2]
[326590372,1715119876564,-500.0,0.00022191,2]
[326590373,1715119876574,-500.0,0.00022191,2]
[326590374,1715119876584,-500.0,0.00022191,2]
[326590375,1715119876594,-1949.26,0.00022191,2]
[326590376,1715119876603,-1000.0,0.000222,2]
[326590377,1715119876613,-30.37723985,0.00022448,2]
[326590378,1715119876758,-126.67356715,0.00022448,2]
[326590379,1715119876768,-500.0,0.00022465,2]
[326590380,1715119876778,-500.0,0.00022465,2]
[326590381,1715119876787,-332.10950116,0.00022465,2]
[326590382,1715119876799,-167.89049884,0.00022465,2]
[326590383,1715119876809,-500.0,0.00022465,2]
[326590384,1715119876818,-187.73580195,0.00022465,2]
[326590385,1715119876829,-312.26419805,0.00022465,2]
[326590386,1715119876839,-40.46379837,0.00022465,2]
[326590387,1715119876850,-292.00081544,0.00022465,2]
[326590388,1715119876861,-167.53538619,0.00022465,2]
[326590389,1715119876871,-500.0,0.00022465,2]
[326590390,1715119876881,-500.0,0.00022465,2]
[326590391,1715119876891,-236.67330715,0.00022465,2]
[326590392,1715119876900,-942.72,0.00022465,2]
[326590393,1715119876909,-500.0,0.00022465,2]
[326590394,1715119876919,-515.24,0.00022465,2]
[326590395,1715119876928,-500.0,0.00022465,2]
[326590396,1715119876939,-1730.51,0.00022465,2]
[326590397,1715119876948,-500.0,0.00022465,2]
[326590398,1715119876959,-500.0,0.00022465,2]
[326590399,1715119876969,-500.0,0.00022465,2]
[326590400,1715119876979,-425.71457055,0.00022465,2]
[326590401,1715119876988,-500.0,0.00022465,2]
[326590402,1715119876997,-386.53243739,0.00022465,2]
[326590403,1715119877007,-861.16,0.00022465,2]
[326590404,1715119877018,-697.67,0.00022465,2]
[326590405,1715119877030,-516.54,0.00022465,2]
[326590406,1715119877041,-500.0,0.00022465,2]
[326590407,1715119877052,-1094.36,0.00022465,2]
[326590408,1715119877063,-500.0,0.00022465,2]
[326590409,1715119877072,-971.99,0.00022465,2]
[326590410,1715119877082,-3689.41,0.00022465,2]
[326590411,1715119877091,-569.47,0.00022465,2]
[326590412,1715119877101,-622.05,0.00022465,2]
[326590413,1715119877110,-890.12,0.00022465,2]
[326590414,1715119877120,-850.11,0.00022465,2]
[326590415,1715119877130,-500.0,0.00022465,2]
[326590416,1715119877139,-932.93,0.00022465,2]
[326590417,1715119877149,-828.94,0.00022465,2]
[326590418,1715119877158,-500.0,0.00022465,2]
[326590419,1715119877167,-505.16,0.00022465,2]
[326590420,1715119877177,-500.0,0.00022465,2]
[326590421,1715119877188,-500.0,0.00022465,2]
[326590422,1715119877198,-500.0,0.00022465,2]
[326590423,1715119877207,-831.91,0.00022465,2]
[326590424,1715119877217,-523.62401472,0.00022465,2]
[326590425,1715119877226,-2890.11,0.00022465,2]
[326590426,1715119877235,-500.0,0.00022465,2]
[326590427,1715119877245,-789.32,0.00022465,2]
[326590428,1715119877255,-500.0,0.00022465,2]
[326590429,1715119877264,-500.0,0.00022465,2]
[326590430,1715119877274,-1838.64,0.00022465,2]
[326590431,1715119877284,-500.0,0.00022465,2]
[326590432,1715119877294,-449.69748619,0.00022465,2]
[326590433,1715119877304,-500.0,0.00022465,2]
[326590434,1715119877314,-500.0,0.00022465,2]
[326590435,1715119877323,-500.0,0.00022465,2]
[326590436,1715119877333,-1016.56,0.00022465,2]
[326590437,1715119877343,-500.0,0.00022465,2]
[326590438,1715119877352,-875.3,0.00022465,2]
[326590439,1715119877362,-648.96,0.00022465,2]
[326590440,1715119877373,-1782.61,0.00022465,2]
[326590441,1715119877505,-1028.09,0.00022465,2]
[326590442,1715119877516,-1195.08,0.00022465,2]
[326590443,1715119877526,-1256.37,0.00022465,2]
[326590444,1715119877537,-5342.88,0.00022465,2]
[326590445,1715119877547,-3203.8,0.00022465,2]
[326590446,1715119877556,-815.42,0.00022465,2]
[326590447,1715119877566,-500.0,0.00022465,2]
[326590448,1715119877575,-500.0,0.00022465,2]
[326590449,1715119877586,-500.0,0.00022465,2]
[326590450,1715119877596,-500.0,0.00022465,2]
[326590451,1715119877606,-1949.26,0.00022465,2]
[326590452,1715119877616,-638.59,0.000225,2]
[326590453,1715119877626,-1500.0,0.000225,2]
[326590454,1715119877637,-150.0,0.000225,3]
[326590455,1715119877647,-154.20279984,0.00022639,2]
[326590456,1715119877657,-153.87301584,0.00022685,10]
[326590457,1715119877667,-423.48,0.00022739,2]
[326590458,1715119877677,-500.0,0.00022739,2]
[326590459,1715119877693,-338.24,0.00022739,2]
[326590460,1715119877703,-550.02115276,0.00022739,2]
[326590461,1715119877712,-500.0,0.00022739,2]
[326590462,1715119877722,-500.0,0.00022739,2]
[326590463,1715119877732,-500.0,0.00022739,2]
[326590464,1715119877742,-500.0,0.00022739,2]
[326590465,1715119877751,-942.72,0.00022739,2]
[326590466,1715119877761,-500.0,0.00022739,2]
[326590467,1715119877771,-515.24,0.00022739,2]
[326590468,1715119877781,-500.0,0.00022739,2]
[326590469,1715119877791,-1730.51,0.00022739,2]
[326590470,1715119877800,-500.0,0.00022739,2]
[326590471,1715119877810,-325.72886763,0.00022739,2]
[326590472,1715119877820,-592.82919624,0.00022739,2]
[326590473,1715119877829,-500.0,0.00022739,2]
[326590474,1715119877839,-861.16,0.00022739,2]
[326590475,1715119877849,-697.67,0.00022739,2]
[326590476,1715119877859,-516.54,0.00022739,2]
[326590477,1715119877868,-500.0,0.00022739,2]
[326590478,1715119877877,-1094.36,0.00022739,2]
[326590479,1715119877887,-500.0,0.00022739,2]
[326590480,1715119877896,-971.99,0.00022739,2]